[Event "FIDE Grand Swiss 2023"]
[Site "Villa Marina, Douglas, Isle of Man"]
[Date "2023.11.03"]
[Round "9.11"]
[White "Niemann, Hans Moke"]
[Black "Vitiugov, Nikita"]
[Result "1/2-1/2"]
[WhiteElo "2667"]
[BlackElo "2711"]
[EventDate "2023.10.25"]
[ECO "C50"]
[PlyCount "61"]
[BlackClock "00:39:10"]
[BlackFideId "4152956"]
[TimeControl "40/100 + 20/50 + 15 + 30s/move"]
[WhiteClock "00:24:32"]
[WhiteFideId "2093596"]

1.e4 {[%clk 01:40:51][%emt 00:00:08]} 1...e5 {[%clk 01:40:37][%emt 00:00:24]} 
2.Nf3 {[%clk 01:41:06][%emt 00:00:14]} 2...Nc6 {[%clk 01:41:01][%emt 00:00:08]} 
3.Bc4 {[%clk 01:40:12][%emt 00:01:22]} 3...Bc5 {[%clk 01:41:09][%emt 00:00:23]} 
4.d3 {[%clk 01:40:02][%emt 00:00:39]} 4...Nf6 {[%clk 01:41:12][%emt 00:00:29]} 
5.O-O {[%clk 01:39:42][%emt 00:00:47]} 5...d6 {[%clk 01:40:19][%emt 00:01:25]} 
6.c3 {[%clk 01:39:15][%emt 00:00:57]} 6...h6 {[%clk 01:40:11][%emt 00:00:39]} 
7.Nbd2 {[%clk 01:39:07][%emt 00:00:36]} 7...O-O {[%clk 01:39:46][%emt 00:00:56]} 
8.Re1 {[%clk 01:38:33][%emt 00:01:04]} 8...a5 {[%clk 01:39:30][%emt 00:00:47]} 
9.Nf1 {[%clk 01:38:52][%emt 00:00:09]} 9...a4 {[%clk 01:38:59][%emt 00:01:03]} 
10.h3 {[%clk 01:35:13][%emt 00:04:09]} 10...Ra5 {[%clk 01:37:59][%emt 00:01:30]} 
11.d4 {[%clk 01:33:34][%emt 00:02:07]} 11...Bb6 {[%clk 01:35:19][%emt 00:03:11]} 
12.b4 {[%clk 01:33:57][%emt 00:00:07]} 12...axb3 {[%clk 01:35:45][%emt
00:00:05]} 13.Bxb3 {[%clk 01:34:21][%emt 00:00:05]} 13...d5 {[%clk
01:33:37][%emt 00:02:38]} 14.exd5 {[%clk 01:34:34][%emt 00:00:17]} 14...Nxd5 
{[%clk 01:34:01][%emt 00:00:07]} 15.dxe5 {[%clk 01:34:55][%emt 00:00:08]} 
15...Nxc3 {[%clk 01:33:51][%emt 00:00:40]} 16.Qc2 {[%clk 01:35:20][%emt
00:00:05]} 16...Nd5 {[%clk 01:31:31][%emt 00:02:51]} 17.Bd2 {[%clk
01:32:46][%emt 00:03:03]} 17...Rc5 {[%clk 01:31:06][%emt 00:00:56]} 18.Qe4 
{[%clk 01:32:59][%emt 00:00:15]} 18...Nc3 {[%clk 01:27:15][%emt 00:04:22]} 
19.Qf4 {[%clk 01:30:53][%emt 00:02:35]} 19...Qd3 {[%clk 01:22:22][%emt
00:05:24]} 20.Ng3 {[%clk 01:06:47][%emt 00:24:36]} 20...Qg6 {[%clk
01:16:08][%emt 00:06:44]} 21.Nh4 {[%clk 00:33:09][%emt 00:34:08]} 21...Qg5 
{[%clk 01:04:19][%emt 00:12:19]} 22.Qxg5 {[%clk 00:33:14][%emt 00:00:24]} 
22...hxg5 {[%clk 01:04:44][%emt 00:00:06]} 23.Nf3 {[%clk 00:33:36][%emt
00:00:07]} 23...g4 {[%clk 01:02:10][%emt 00:03:05]} 24.hxg4 {[%clk
00:33:53][%emt 00:00:13]} 24...Bxg4 {[%clk 01:01:46][%emt 00:00:54]} 25.Be3 
{[%clk 00:34:01][%emt 00:00:22]} 25...Rb5 {[%clk 00:43:47][%emt 00:18:30]} 
26.Bxb6 {[%clk 00:34:14][%emt 00:00:16]} 26...Rxb6 {[%clk 00:43:58][%emt
00:00:19]} 27.Rac1 {[%clk 00:30:45][%emt 00:03:58]} 27...Nb5 {[%clk
00:43:24][%emt 00:01:06]} 28.e6 {[%clk 00:26:34][%emt 00:04:40]} 28...Bxe6 
{[%clk 00:41:49][%emt 00:02:05]} 29.Bxe6 {[%clk 00:26:56][%emt 00:00:08]} 
29...fxe6 {[%clk 00:42:15][%emt 00:00:04]} 30.Rxe6 {[%clk 00:27:19][%emt
00:00:06]} 30...Nd6 {[%clk 00:41:18][%emt 00:01:28]} 31.Re2 {[%clk
00:24:32][%emt 00:03:14]} 1/2-1/2

[Event "FIDE Grand Swiss 2023"]
[Site "Villa Marina, Douglas, Isle of Man"]
[Date "2023.11.03"]
[Round "9.12"]
[White "Firouzja, Alireza"]
[Black "Aravindh, Chithambaram Vr."]
[Result "1/2-1/2"]
[WhiteElo "2777"]
[BlackElo "2649"]
[EventDate "2023.10.25"]
[ECO "D35"]
[PlyCount "112"]
[BlackFideId "5072786"]
[TimeControl "40/100 + 20/50 + 15 + 30s/move"]
[WhiteFideId "12573981"]

1.d4 {[%clk 01:40:42][%emt 00:00:17]} 1...Nf6 {[%clk 01:40:44][%emt 00:00:16]} 
2.c4 {[%clk 01:41:05][%emt 00:00:08]} 2...e6 {[%clk 01:41:04][%emt 00:00:09]} 
3.Nc3 {[%clk 01:41:27][%emt 00:00:08]} 3...d5 {[%clk 01:41:26][%emt 00:00:09]} 
4.cxd5 {[%clk 01:41:49][%emt 00:00:08]} 4...Nxd5 {[%clk 01:41:34][%emt
00:00:21]} 5.e4 {[%clk 01:41:46][%emt 00:00:34]} 5...Nxc3 {[%clk 01:41:55][%emt
00:00:09]} 6.bxc3 {[%clk 01:42:09][%emt 00:00:06]} 6...c5 {[%clk 01:42:20][%emt
00:00:05]} 7.Rb1 {[%clk 01:41:43][%emt 00:00:57]} 7...Be7 {[%clk 01:42:25][%emt
00:00:24]} 8.Nf3 {[%clk 01:40:27][%emt 00:01:47]} 8...O-O {[%clk 01:42:36][%emt
00:00:19]} 9.h4 {[%clk 01:39:50][%emt 00:01:07]} 9...cxd4 {[%clk 01:41:39][%emt
00:01:27]} 10.cxd4 {[%clk 01:40:10][%emt 00:00:09]} 10...b6 {[%clk
01:41:18][%emt 00:00:52]} 11.h5 {[%clk 01:35:21][%emt 00:05:19]} 11...h6 {[%clk
01:38:58][%emt 00:02:49]} 12.Rh3 {[%clk 01:34:23][%emt 00:01:29]} 12...Nd7 
{[%clk 01:37:27][%emt 00:02:00]} 13.e5 {[%clk 01:27:22][%emt 00:07:31]} 
13...Bb7 {[%clk 01:22:33][%emt 00:15:24]} 14.Bd3 {[%clk 01:18:27][%emt
00:09:25]} 14...Kh8 {[%clk 01:21:59][%emt 00:01:04]} 15.Be3 {[%clk
01:05:46][%emt 00:13:11]} 15...f5 {[%clk 00:49:24][%emt 00:33:04]} 16.Bc4 
{[%clk 01:03:49][%emt 00:02:28]} 16...Qe8 {[%clk 00:49:06][%emt 00:00:48]} 
17.Qb3 {[%clk 00:58:48][%emt 00:05:31]} 17...Be4 {[%clk 00:43:32][%emt
00:06:03]} 18.Rc1 {[%clk 00:57:03][%emt 00:02:16]} 18...a5 {[%clk 00:39:40][%emt
00:04:22]} 19.Bd2 {[%clk 00:42:25][%emt 00:15:08]} 19...a4 {[%clk 00:31:11][%emt
00:08:59]} 20.Qb5 {[%clk 00:40:34][%emt 00:02:22]} 20...Ba3 {[%clk
00:30:21][%emt 00:01:19]} 21.Rd1 {[%clk 00:36:42][%emt 00:04:22]} 21...Be7 
{[%clk 00:29:18][%emt 00:01:33]} 22.Kf1 {[%clk 00:13:10][%emt 00:24:02]} 
22...Bb7 {[%clk 00:29:13][%emt 00:00:35]} 23.Rc1 {[%clk 00:11:13][%emt
00:02:28]} 23...Ba6 {[%clk 00:26:07][%emt 00:03:36]} 24.Qb1 {[%clk
00:09:59][%emt 00:01:43]} 24...Ba3 {[%clk 00:20:38][%emt 00:05:59]} 25.Bxa6 
{[%clk 00:08:00][%emt 00:02:30]} 25...Bxc1 {[%clk 00:20:10][%emt 00:00:57]} 
26.Qxc1 {[%clk 00:08:24][%emt 00:00:06]} 26...Rxa6 {[%clk 00:20:34][%emt
00:00:06]} 27.Bxh6 {[%clk 00:08:51][%emt 00:00:03]} 27...Qc8 {[%clk
00:17:11][%emt 00:03:53]} 28.Bxg7+ {[%clk 00:05:13][%emt 00:04:09]} 28...Kxg7 
{[%clk 00:16:45][%emt 00:00:56]} 29.Rg3+ {[%clk 00:05:31][%emt 00:00:12]} 
29...Kf7 {[%clk 00:14:27][%emt 00:02:47]} 30.Ng5+ {[%clk 00:05:44][%emt
00:00:16]} 30...Ke7 {[%clk 00:10:11][%emt 00:04:47]} 31.Rc3 {[%clk
00:05:55][%emt 00:00:19]} 31...Qb7 {[%clk 00:09:41][%emt 00:01:00]} 32.Qa3+ 
{[%clk 00:04:35][%emt 00:01:50]} 32...Ke8 {[%clk 00:09:49][%emt 00:00:22]} 
33.Nxe6 {[%clk 00:04:42][%emt 00:00:22]} 33...b5 {[%clk 00:07:37][%emt
00:02:42]} 34.Rc7 {[%clk 00:03:22][%emt 00:01:50]} 34...Qb8 {[%clk
00:07:53][%emt 00:00:14]} 35.Qc1 {[%clk 00:03:15][%emt 00:00:37]} 35...Rxe6 
{[%clk 00:07:48][%emt 00:00:36]} 36.Rc8+ {[%clk 00:03:40][%emt 00:00:05]} 
36...Qxc8 {[%clk 00:08:06][%emt 00:00:12]} 37.Qxc8+ {[%clk 00:04:06][%emt
00:00:05]} 37...Ke7 {[%clk 00:08:32][%emt 00:00:03]} 38.Qc3 {[%clk
00:03:37][%emt 00:00:59]} 38...Rb6 {[%clk 00:07:01][%emt 00:02:01]} 39.d5 
{[%clk 00:03:16][%emt 00:00:51]} 39...b4 {[%clk 00:06:54][%emt 00:00:37]} 
40.Qc4 {[%clk 00:01:03][%emt 00:02:43]} 40...Nxe5 {[%clk 00:05:37][%emt
00:01:47]} 41.Qc5+ {[%clk 00:00:46][%emt 00:00:48]} 41...Rd6 {[%clk
00:06:01][%emt 00:00:05]} 42.Qxb4 {[%clk 00:50:13][%emt 00:01:04]} 42...Nf7 
{[%clk 00:45:24][%emt 00:11:06]} 43.Qh4+ {[%clk 00:49:00][%emt 00:01:43]} 
43...Rf6 {[%clk 00:45:02][%emt 00:00:52]} 44.Qxa4 {[%clk 00:47:15][%emt
00:02:16]} 44...Rd8 {[%clk 00:42:29][%emt 00:03:02]} 45.Qb4+ {[%clk
00:44:05][%emt 00:03:39]} 45...Ke8 {[%clk 00:42:03][%emt 00:00:56]} 46.Qc3 
{[%clk 00:38:46][%emt 00:05:50]} 46...Rfd6 {[%clk 00:40:42][%emt 00:01:51]} 
47.a4 {[%clk 00:37:01][%emt 00:02:15]} 47...Rxd5 {[%clk 00:39:26][%emt
00:01:45]} 48.a5 {[%clk 00:35:15][%emt 00:02:16]} 48...Rd1+ {[%clk
00:38:06][%emt 00:01:50]} 49.Ke2 {[%clk 00:35:32][%emt 00:00:14]} 49...R1d6 
{[%clk 00:38:12][%emt 00:00:23]} 50.g3 {[%clk 00:35:06][%emt 00:00:56]} 
50...Ke7 {[%clk 00:29:42] [%emt 00:09:00]} 51.Qf3 {[%clk 00:27:58][%emt
00:07:38]} 51...Kf6 {[%clk 00:25:29][%emt 00:04:42]} 52.Qc3+ {[%clk
00:19:36][%emt 00:08:54]} 52...Ke7 {[%clk 00:29:42][%emt 00:09:00]} 53.Qb2 
{[%clk 00:16:35][%emt 00:03:31]} 53...Re6+ {[%clk 00:24:44][%emt 00:01:37]} 
54.Kf1 {[%clk 00:15:04][%emt 00:02:01]} 54...Rdd6 {[%clk 00:24:47][%emt
00:00:27]} 55.Kg2 {[%clk 00:14:25][%emt 00:01:09]} 55...Kf8 {[%clk
00:23:40][%emt 00:01:37]} 56.Qc2 {[%clk 00:10:12][%emt 00:04:44]} 56...Rf6 
{[%clk 00:23:44][%emt 00:00:25]} 1/2-1/2

[Event "FIDE Grand Swiss 2023"]
[Site "Villa Marina, Douglas, Isle of Man"]
[Date "2023.11.03"]
[Round "9.13"]
[White "Giri, Anish"]
[Black "Mamedov, Rauf"]
[Result "1-0"]
[WhiteElo "2760"]
[BlackElo "2640"]
[EventDate "2023.10.25"]
[ECO "E90"]
[PlyCount "181"]
[BlackFideId "13401653"]
[TimeControl "40/100 + 20/50 + 15 + 30s/move"]
[WhiteFideId "24116068"]

1.d4 {[%clk 01:40:57][%emt 00:00:02]} 1...Nf6 {[%clk 01:40:49][%emt 00:00:12]} 
2.c4 {[%clk 01:41:21][%emt 00:00:06]} 2...g6 {[%clk 01:41:16][%emt 00:00:03]} 
3.Nc3 {[%clk 01:39:10][%emt 00:02:41]} 3...Bg7 {[%clk 01:40:07][%emt 00:01:38]} 
4.e4 {[%clk 01:39:34][%emt 00:00:05]} 4...d6 {[%clk 01:40:34][%emt 00:00:04]} 
5.Nf3 {[%clk 01:40:00][%emt 00:00:04]} 5...O-O {[%clk 01:41:00][%emt 00:00:04]} 
6.Bd3 {[%clk 01:40:27][%emt 00:00:04]} 6...Bg4 {[%clk 01:35:11][%emt 00:06:19]} 
7.Be2 {[%clk 01:40:51][%emt 00:00:06]} 7...c5 {[%clk 01:30:02][%emt 00:05:39]} 
8.d5 {[%clk 01:39:00][%emt 00:02:20]} 8...e6 {[%clk 01:27:07][%emt 00:03:25]} 
9.O-O {[%clk 01:38:50][%emt 00:00:40]} 9...exd5 {[%clk 01:26:27][%emt 00:01:10]} 
10.exd5 {[%clk 01:39:14][%emt 00:00:06]} 10...Re8 {[%clk 01:22:14][%emt
00:04:45]} 11.h3 {[%clk 01:32:25][%emt 00:07:18]} 11...Bxf3 {[%clk
01:10:26][%emt 00:12:18]} 12.Bxf3 {[%clk 01:32:10][%emt 00:00:44]} 12...Nbd7 
{[%clk 01:10:52][%emt 00:00:05]} 13.Qc2 {[%clk 01:22:25][%emt 00:10:15]} 
13...a6 {[%clk 01:08:57][%emt 00:02:26]} 14.Bf4 {[%clk 01:09:02][%emt 00:13:52]} 
14...Qb6 {[%clk 00:55:12][%emt 00:14:15]} 15.Rae1 {[%clk 01:04:34][%emt
00:04:57]} 15...Rxe1 {[%clk 00:54:43][%emt 00:01:00]} 16.Rxe1 {[%clk
01:05:01][%emt 00:00:03]} 16...Re8 {[%clk 00:54:55][%emt 00:00:18]} 17.Rxe8+ 
{[%clk 01:04:19][%emt 00:01:11]} 17...Nxe8 {[%clk 00:54:18][%emt 00:01:07]} 
18.b3 {[%clk 01:04:31][%emt 00:00:19]} 18...Qd8 {[%clk 00:50:31][%emt 00:04:17]} 
19.Ne4 {[%clk 01:02:05][%emt 00:02:55]} 19...Qe7 {[%clk 00:38:49][%emt
00:12:13]} 20.g4 {[%clk 01:00:14][%emt 00:02:20]} 20...Be5 {[%clk 00:32:49][%emt
00:06:31]} 21.Bg5 {[%clk 00:59:33][%emt 00:01:10]} 21...f6 {[%clk 00:29:28][%emt
00:03:51]} 22.Bd2 {[%clk 00:59:47][%emt 00:00:16]} 22...Ng7 {[%clk
00:28:38][%emt 00:01:20]} 23.Kg2 {[%clk 00:51:46][%emt 00:08:31]} 23...f5 
{[%clk 00:24:59][%emt 00:04:09]} 24.Ng3 {[%clk 00:47:06][%emt 00:05:10]} 
24...Bxg3 {[%clk 00:23:19][%emt 00:02:11]} 25.fxg3 {[%clk 00:42:00][%emt
00:05:36]} 25...Ne5 {[%clk 00:23:22][%emt 00:00:27]} 26.Bd1 {[%clk
00:40:39][%emt 00:01:50]} 26...fxg4 {[%clk 00:17:22][%emt 00:06:30]} 27.hxg4 
{[%clk 00:40:50][%emt 00:00:18]} 27...Ne8 {[%clk 00:17:50][%emt 00:00:03]} 
28.Qe4 {[%clk 00:36:27][%emt 00:04:53]} 28...Nf6 {[%clk 00:16:36][%emt
00:01:44]} 29.Qe3 {[%clk 00:36:30][%emt 00:00:26]} 29...Kf7 {[%clk
00:14:19][%emt 00:02:49]} 30.g5 {[%clk 00:36:08][%emt 00:00:52]} 30...Nfd7 
{[%clk 00:14:47][%emt 00:00:02]} 31.a4 {[%clk 00:36:00][%emt 00:00:37]} 31...b6 
{[%clk 00:10:25][%emt 00:04:52]} 32.a5 {[%clk 00:35:45][%emt 00:00:46]} 
32...bxa5 {[%clk 00:10:52][%emt 00:00:03]} 33.Bxa5 {[%clk 00:36:01][%emt
00:00:14]} 33...Ke8 {[%clk 00:11:16][%emt 00:00:06]} 34.Be2 {[%clk
00:31:09][%emt 00:05:21]} 34...Nf8 {[%clk 00:05:47][%emt 00:05:59]} 35.Bd2 
{[%clk 00:28:37][%emt 00:03:01]} 35...Nfd7 {[%clk 00:06:09][%emt 00:00:09]} 
36.Qe4 {[%clk 00:27:30][%emt 00:01:36]} 36...Kd8 {[%clk 00:05:36][%emt
00:01:05]} 37.Kg1 {[%clk 00:22:39][%emt 00:05:19]} 37...Ke8 {[%clk
00:03:42][%emt 00:02:25]} 38.Bf1 {[%clk 00:22:24][%emt 00:00:45]} 38...Nf7 
{[%clk 00:03:54][%emt 00:00:19]} 39.Qxe7+ {[%clk 00:05:49][%emt 00:17:04]} 
39...Kxe7 {[%clk 00:04:21][%emt 00:00:03]} 40.Kf2 {[%clk 00:06:13][%emt
00:00:07]} 40...Nde5 {[%clk 00:02:06][%emt 00:02:45]} 41.Be2 {[%clk
00:47:41][%emt 00:09:01]} 41...Nd7 {[%clk 00:39:48][%emt 00:12:48]} 42.Ke1 
{[%clk 00:45:40][%emt 00:02:31]} 42...Nb8 {[%clk 00:40:15][%emt 00:00:03]} 
43.Kd1 {[%clk 00:39:03][%emt 00:07:07]} 43...a5 {[%clk 00:40:16][%emt 00:00:29]} 
44.Kc2 {[%clk 00:39:09][%emt 00:00:24]} 44...Na6 {[%clk 00:39:19][%emt
00:01:27]} 45.Kb2 {[%clk 00:38:09][%emt 00:01:30]} 45...Nb4 {[%clk
00:37:51][%emt 00:01:58]} 46.Ka3 {[%clk 00:38:29][%emt 00:00:11]} 46...Nc2+ 
{[%clk 00:30:56][%emt 00:07:24]} 47.Ka4 {[%clk 00:36:02][%emt 00:02:57]} 
47...Nd4 {[%clk 00:30:52][%emt 00:00:35]} 48.Bd1 {[%clk 00:35:03][%emt
00:01:28]} 48...Ne5 {[%clk 00:29:02][%emt 00:02:20]} 49.Kxa5 {[%clk
00:31:28][%emt 00:04:06]} 49...Nd3 {[%clk 00:28:36][%emt 00:00:56]} 50.Bc3 
{[%clk 00:25:10][%emt 00:06:48]} 50...Nf2 {[%clk 00:28:50][%emt 00:00:15]} 
51.Bxd4 {[%clk 00:24:15][%emt 00:01:26]} 51...Nxd1 {[%clk 00:29:16][%emt
00:00:04]} 52.Bg1 {[%clk 00:21:34][%emt 00:03:07]} 52...Nc3 {[%clk
00:26:07][%emt 00:03:42]} 53.Be3 {[%clk 00:13:08][%emt 00:08:56]} 53...Kd7 
{[%clk 00:23:42][%emt 00:02:56]} 54.b4 {[%clk 00:02:39][%emt 00:10:58]} 
54...Nd1 {[%clk 00:20:19][%emt 00:03:53]} 55.Bg1 {[%clk 00:03:01][%emt
00:00:08]} 55...Nb2 {[%clk 00:20:05][%emt 00:00:44]} 56.bxc5 {[%clk
00:03:12][%emt 00:00:20]} 56...Nxc4+ {[%clk 00:20:26][%emt 00:00:08]} 57.Kb5 
{[%clk 00:01:57][%emt 00:01:45]} 57...Ne5 {[%clk 00:17:47][%emt 00:03:10]} 
58.c6+ {[%clk 00:02:14][%emt 00:00:12]} 58...Kc7 {[%clk 00:17:28][%emt
00:00:49]} 59.Bb6+ {[%clk 00:01:40][%emt 00:01:04]} 59...Kc8 {[%clk
00:17:53][%emt 00:00:05]} 60.Bd4 {[%clk 00:02:06][%emt 00:00:04]} 60...Nf3 
{[%clk 00:14:09][%emt 00:04:14]} 61.Be3 {[%clk 00:14:37][%emt 00:02:59]} 
61...Kc7 {[%clk 00:29:35][%emt 00:00:04]} 62.Kc4 {[%clk 00:12:32][%emt
00:02:35]} 62...Ne5+ {[%clk 00:27:49][%emt 00:02:16]} 63.Kd4 {[%clk
00:12:59][%emt 00:00:02]} 63...Nf3+ {[%clk 00:27:05][%emt 00:01:14]} 64.Kc3 
{[%clk 00:12:42][%emt 00:00:47]} 64...Ne5 {[%clk 00:27:14][%emt 00:00:22]} 
65.Bd4 {[%clk 00:11:09][%emt 00:02:02]} 65...Nf7 {[%clk 00:27:14][%emt
00:00:30]} 66.Bf6 {[%clk 00:11:07][%emt 00:00:32]} 66...Kc8 {[%clk
00:24:08][%emt 00:03:37]} 67.Kb4 {[%clk 00:10:52][%emt 00:00:45]} 67...Kc7 
{[%clk 00:19:57][%emt 00:04:41]} 68.Kb5 {[%clk 00:11:18][%emt 00:00:04]} 
68...h6 {[%clk 00:20:25][%emt 00:00:03]} 69.gxh6 {[%clk 00:11:17][%emt
00:00:30]} 69...Nxh6 {[%clk 00:20:53][%emt 00:00:03]} 70.Bd4 {[%clk
00:11:17][%emt 00:00:29]} 70...Nf7 {[%clk 00:16:58][%emt 00:04:25]} 71.Kc4 
{[%clk 00:11:30][%emt 00:00:18]} 71...Kc8 {[%clk 00:17:10][%emt 00:00:17]} 
72.Kd3 {[%clk 00:11:43][%emt 00:00:17]} 72...Kc7 {[%clk 00:17:36][%emt
00:00:05]} 73.Ke4 {[%clk 00:12:00][%emt 00:00:12]} 73...Kc8 {[%clk
00:18:02][%emt 00:00:04]} 74.Kf4 {[%clk 00:12:15][%emt 00:00:14]} 74...Kc7 
{[%clk 00:18:28][%emt 00:00:05]} 75.Bf6 {[%clk 00:12:37][%emt 00:00:07]} 
75...Kc8 {[%clk 00:18:47][%emt 00:00:12]} 76.g4 {[%clk 00:12:47][%emt 00:00:20]} 
76...Kc7 {[%clk 00:19:15][%emt 00:00:02]} 77.g5 {[%clk 00:13:11][%emt 00:00:05]} 
77...Kc8 {[%clk 00:18:57][%emt 00:00:49]} 78.Ke4 {[%clk 00:13:37][%emt
00:00:04]} 78...Kc7 {[%clk 00:19:25][%emt 00:00:02]} 79.Kd4 {[%clk
00:14:04][%emt 00:00:03]} 79...Kb6 {[%clk 00:19:48][%emt 00:00:07]} 80.Kc4 
{[%clk 00:13:09][%emt 00:01:24]} 80...Ka6 {[%clk 00:19:59][%emt 00:00:20]} 
81.Kb3 {[%clk 00:09:46][%emt 00:03:53]} 81...Kb6 {[%clk 00:20:14][%emt
00:00:15]} 82.Kb4 {[%clk 00:10:11][%emt 00:00:04]} 82...Ka6 {[%clk
00:19:57][%emt 00:00:48]} 83.Bd8 {[%clk 00:08:33][%emt 00:02:07]} 83...Ne5 
{[%clk 00:18:25][%emt 00:02:03]} 84.Bc7 {[%clk 00:08:51][%emt 00:00:11]} 
84...Nf7 {[%clk 00:18:47][%emt 00:00:09]} 85.Kc4 {[%clk 00:08:37][%emt
00:00:43]} 85...Ne5+ {[%clk 00:17:04][%emt 00:02:14]} 86.Kc3 {[%clk
00:09:01][%emt 00:00:06]} 86...Nf7 {[%clk 00:17:22][%emt 00:00:12]} 87.Kb4 
{[%clk 00:09:18][%emt 00:00:13]} 87...Nxg5 {[%clk 00:14:42][%emt 00:03:10]} 
88.Bxd6 {[%clk 00:09:44][%emt 00:00:05]} 88...Nf7 {[%clk 00:14:31][%emt
00:00:41]} 89.Kc5 {[%clk 00:08:59][%emt 00:01:14]} 89...g5 {[%clk 00:14:44][%emt
00:00:17]} 90.Bg3 {[%clk 00:08:52][%emt 00:00:37]} 90...g4 {[%clk 00:14:53]
[%emt 00:00:21]} 91.d6 {[%clk 00:09:20] [%emt 00:00:02]} 1-0